fUST/lending_fUST_20250805
["ID","MTS","AMOUNT","RATE_DAILY","PERIOD"]
[377409073,1754387941070,204.60396448,0.000249,2]
[377409074,1754387941147,204.60396448,0.000249,2]
[377409075,1754387941242,204.60396448,0.00025336,3]
[377409078,1754388056354,226.71201642,0.00027101,2]
[377409079,1754388095477,204.60396448,0.000249,2]
[377409080,1754388095686,204.60396448,0.000249,2]
[377409081,1754388095720,204.60396448,0.00025829,4]
[377409084,1754388100630,500.0,0.00030691,120]
[377409087,1754388111472,16407.69282279,0.00027086,2]
[377409088,1754388111493,8492.30717721,0.00027086,2]
[377409089,1754388149539,394.0,0.00029957,120]
[377409090,1754388150021,394.0,0.00029947,120]
[377409091,1754388150461,394.0,0.00029937,120]
[377409092,1754388203739,179.194785,0.00027039,2]
[377409100,1754388450841,198.958987,0.00026905,2]
[377409111,1754388622950,1459.330234,0.00026937,2]
[377409160,1754388632660,-601.7367763,0.00027149,2]
[377409162,1754388632670,-1000.0,0.00027194,2]
[377409164,1754388632680,-226.38227363,0.00028037,2]
[377409166,1754388632689,-425.00645654,0.00028308,2]
[377409169,1754388632699,-1200.0,0.00028309,2]
[377409171,1754388632708,-2968.46386031,0.0002831,2]
[377409173,1754388632717,-185.0,0.0002832,2]
[377409175,1754388632727,-300.0,0.0002832,2]
[377409177,1754388632736,-1028.36,0.00028399,3]
[377409179,1754388632746,-8688.3840132,0.000284,2]
[377409190,1754388632842,-471.98987529,0.000284,2]
[377409193,1754388632854,-522.32389176,0.000284,2]
[377409232,1754388638313,-500.0,0.00028399,2]
[377409233,1754388638322,-250.0,0.00028399,2]
[377409234,1754388638331,-500.0,0.00028399,2]
[377409235,1754388638341,-500.0,0.00028399,2]
[377409236,1754388638350,-602.93982846,0.00028399,2]
[377409237,1754388638360,-500.0,0.00028399,2]
[377409238,1754388638369,-500.0,0.00028399,2]
[377409239,1754388638378,-161.32437421,0.00028399,2]
[377409240,1754388638387,-416.86310623,0.00028399,2]
[377409241,1754388638396,-500.0,0.00028399,2]
[377409242,1754388638405,-500.0,0.00028399,2]
[377409243,1754388638414,-500.0,0.00028399,2]
[377409244,1754388638423,-500.0,0.00028399,2]
[377409245,1754388638431,-157.99788721,0.00028399,2]
[377409246,1754388638440,-500.0,0.00028399,2]
[377409247,1754388638449,-500.0,0.00028399,2]
[377409248,1754388638457,-500.0,0.00028399,2]
[377409249,1754388638467,-500.0,0.00028399,2]
[377409250,1754388638476,-500.0,0.00028399,2]
[377409251,1754388638485,-500.0,0.00028399,2]
[377409252,1754388638494,-500.0,0.00028399,2]
[377409253,1754388638503,-500.0,0.00028399,2]
[377409254,1754388638512,-500.0,0.00028399,2]
[377409255,1754388638521,-500.0,0.00028399,2]
[377409256,1754388638531,-500.0,0.00028399,2]
[377409257,1754388638540,-500.0,0.00028399,2]
[377409258,1754388638550,-500.0,0.00028399,2]
[377409259,1754388638559,-500.0,0.00028399,2]
[377409260,1754388638569,-488.97410275,0.00028399,2]
[377409261,1754388638578,-500.0,0.00028399,2]
[377409262,1754388638587,-500.0,0.00028399,2]
[377409263,1754388638597,-224.617561,0.00028399,2]
[377409264,1754388638607,-500.0,0.00028399,2]
[377409265,1754388638616,-500.0,0.00028399,2]
[377409266,1754388638625,-500.0,0.00028399,2]
[377409267,1754388638634,-500.0,0.00028399,2]
[377409268,1754388638643,-500.0,0.00028399,2]
[377409269,1754388638652,-500.0,0.00028399,2]
[377409270,1754388638662,-500.0,0.00028399,2]
[377409271,1754388638671,-500.0,0.00028399,2]
[377409272,1754388638681,-500.0,0.00028399,2]
[377409273,1754388638690,-500.0,0.00028399,2]
[377409274,1754388638700,-500.0,0.00028399,2]
[377409275,1754388638709,-500.0,0.00028399,2]
[377409276,1754388638718,-500.0,0.00028399,2]
[377409277,1754388638728,-500.0,0.00028399,2]
[377409278,1754388638737,-500.0,0.00028399,2]
[377409279,1754388638746,-500.0,0.00028399,2]
[377409280,1754388638755,-500.0,0.00028399,2]
[377409281,1754388638765,-500.0,0.00028399,2]
[377409282,1754388638774,-500.0,0.00028399,2]
[377409283,1754388638784,-500.0,0.00028399,2]
[377409284,1754388638793,-500.0,0.00028399,2]
[377409285,1754388638805,-500.0,0.00028399,2]
[377409286,1754388638815,-500.0,0.00028399,2]
[377409287,1754388638825,-500.0,0.00028399,2]
[377409288,1754388638834,-500.0,0.00028399,2]
[377409289,1754388638844,-500.0,0.00028399,2]
[377409290,1754388638853,-500.0,0.00028399,2]
[377409291,1754388638863,-500.0,0.00028399,2]
[377409292,1754388638873,-500.0,0.00028399,2]
[377409293,1754388638884,-500.0,0.00028399,2]
[377409294,1754388638893,-500.0,0.00028399,2]
[377409295,1754388638903,-500.0,0.00028399,2]
[377409296,1754388638912,-500.0,0.00028399,2]
[377409297,1754388638921,-500.0,0.00028399,2]
[377409298,1754388638930,-500.0,0.00028399,2]
[377409299,1754388638939,-500.0,0.00028399,2]
[377409300,1754388638952,-500.0,0.00028399,2]
[377409301,1754388638967,-500.0,0.00028399,2]
[377409304,1754388638981,-500.0,0.00028399,2]
[377409306,1754388638994,-500.0,0.00028399,2]
[377409308,1754388639005,-500.0,0.00028399,2]
[377409311,1754388639018,-500.0,0.00028399,2]
[377409313,1754388639031,-500.0,0.00028399,2]
[377409316,1754388639044,-500.0,0.00028399,2]
[377409318,1754388639058,-500.0,0.00028399,2]
[377409321,1754388639072,-214.81089282,0.00028399,2]
[377409323,1754388639084,-500.0,0.00028399,2]
[377409325,1754388639097,-500.0,0.00028399,2]
[377409328,1754388639112,-500.0,0.00028399,2]
[377409330,1754388639125,-500.0,0.00028399,2]
[377409333,1754388639137,-500.0,0.00028399,2]
[377409335,1754388639150,-500.0,0.00028399,2]
[377409337,1754388639161,-500.0,0.00028399,2]
[377409340,1754388639175,-500.0,0.00028399,2]
[377409342,1754388639188,-500.0,0.00028399,2]
[377409345,1754388639202,-500.0,0.00028399,2]
[377409347,1754388639213,-500.0,0.00028399,2]
[377409349,1754388639224,-500.0,0.00028399,2]
[377409351,1754388639237,-500.0,0.00028399,2]
[377409353,1754388639248,-500.0,0.00028399,2]
[377409356,1754388639261,-465.59711277,0.00028399,2]
[377409358,1754388639274,-26144.97489695,0.000284,2]
[377409361,1754388639288,-2654.56050727,0.000284,2]
[377409363,1754388639302,-273.69833824,0.00028407,2]
[377409366,1754388639314,-50000.0,0.00028408,2]
[377409368,1754388639328,-1200.0,0.0002841,2]
[377409370,1754388639339,-278.799,0.00028415,19]
[377409372,1754388639350,-179.31870536,0.00028415,19]
[377409374,1754388639361,-500.0,0.00028473,5]
[377409376,1754388639372,-500.0,0.00028473,5]
[377409379,1754388639385,-502.00836468,0.00028473,5]
[377409381,1754388639399,-501.71677108,0.00028473,5]
[377409384,1754388639411,-499.03956877,0.00028473,5]
[377409386,1754388639421,-501.47943193,0.00028473,5]
[377409388,1754388639432,-501.37700277,0.00028473,5]
[377409390,1754388639444,-501.89643264,0.00028473,5]
[377409393,1754388639456,-460.42120368,0.00028473,5]
[377409395,1754388639468,-500.0,0.00028473,5]
[377409397,1754388639478,-233.01668684,0.00028473,5]
[377409399,1754388639488,-500.0,0.00028473,5]
[377409401,1754388639499,-500.0,0.00028473,5]
[377409404,1754388639510,-425.00645653,0.00028599,2]
[377409406,1754388639521,-154.452285,0.00028792,20]
[377409408,1754388639532,-642.73159446,0.0002888,2]
[377409410,1754388639545,-425.00645653,0.0002889,2]
[377409413,1754388639556,-11010.03067506,0.000289,2]
[377409415,1754388639567,-500.0,0.00028973,5]
[377409417,1754388639579,-497.79159648,0.00028973,5]
[377409419,1754388639590,-107483.018032,0.0002898,2]
[377409421,1754388639601,-7963.68152181,0.0002898,2]
[377409424,1754388639613,-100000.0,0.0002899,2]
[377409426,1754388639625,-1000.0,0.00029,29]
[377409428,1754388639636,-1000.0,0.00029021,5]
[377409430,1754388639648,-1000.0,0.00029021,5]
[377409433,1754388639659,-1000.0,0.00029021,5]
[377409435,1754388639671,-500.77354313,0.00029021,5]
[377409437,1754388639683,-500.0,0.00029021,5]
[377409439,1754388639694,-233.41,0.00029039,2]
[377409441,1754388639706,-497.9053687,0.00029128,5]
[377409444,1754388639718,-616.75076089,0.00029128,5]
[377409446,1754388639729,-478.89983292,0.00029128,5]
[377409448,1754388639741,-292.5,0.00029321,2]
[377409450,1754388639753,-151.0,0.000295,10]
[377409452,1754388639764,-500.0,0.00029521,5]
[377409455,1754388639776,-500.0,0.00029568,5]
[377409457,1754388639788,-1500.0,0.00029568,5]
[377409459,1754388639803,-151.0,0.000296,19]
[377409461,1754388639815,-2056.72,0.00029769,3]
[377409464,1754388639826,-151.0,0.000298,13]
[377409466,1754388639838,-143310.690709,0.00029967,2]
[377409468,1754388639861,-21236.4840582,0.00029967,2]
[377409470,1754388639877,-158.64214305,0.00029973,5]
[377409472,1754388639891,-500.0,0.00029973,5]
[377409474,1754388639902,-500.0,0.00029973,5]
[377409478,1754388639920,-524.76653165,0.00029973,5]
[377409480,1754388639943,-370000.0,0.00029977,2]
[377409482,1754388639969,-151.0,0.00029977,7]
[377409484,1754388639995,-151.0,0.00029977,7]
[377409487,1754388640021,-151.0,0.00029977,7]
[377409490,1754388640047,-155.200538,0.00029977,7]
[377409493,1754388640072,-162.202135,0.00029977,7]
[377409497,1754388640097,-151.0,0.00029977,7]
[377409500,1754388640130,-155.502723,0.00029977,7]
[377409504,1754388640166,-151.0,0.00029977,7]
[377409507,1754388640200,-188.66273,0.00029977,7]
[377409510,1754388640230,-151.0,0.00029977,7]
[377409513,1754388640254,-151.833141,0.00029977,7]
[377409515,1754388640265,-151.0,0.00029977,7]
[377409517,1754388640275,-151.0,0.00029977,7]
[377409520,1754388640285,-151.0,0.00029977,7]
[377409522,1754388640294,-151.0,0.0003,20]
[377409558,1754388640468,-219.24498821,0.00030116,5]
[377409559,1754388640478,-5309.12101454,0.00030127,2]
[377409561,1754388640487,-642.73159445,0.00030127,2]
[377409563,1754388640497,-54614.5168398,0.00030137,2]
[377409565,1754388640506,-154.817736,0.00030137,7]
[377409567,1754388640515,-151.0,0.00030137,7]
[377409569,1754388640525,-151.0,0.00030137,7]
[377409571,1754388640535,-151.0,0.00030137,7]
[377409573,1754388640544,-151.0,0.00030137,7]
[377409575,1754388640553,-151.0,0.00030137,7]
[377409577,1754388640563,-151.0,0.00030137,7]
[377409579,1754388640572,-260.141943,0.00030137,7]
[377409581,1754388640581,-260.141943,0.00030137,7]
[377409583,1754388640591,-500.0,0.00030173,5]
[377409585,1754388640600,-500.0,0.00030173,5]
[377409587,1754388640611,-500.0,0.00030173,5]
[377409589,1754388640620,-500.0,0.00030173,5]
[377409591,1754388640630,-500.0,0.00030173,5]
[377409593,1754388640640,-153.69797862,0.00030173,5]
[377409595,1754388640650,-500.0,0.00030173,5]
[377409597,1754388640660,-500.0,0.00030173,5]
[377409599,1754388640670,-502.06083351,0.00030173,5]
[377409601,1754388640680,-500.0,0.00030173,5]
[377409602,1754388640689,-500.0,0.00030173,5]
[377409603,1754388640698,-500.0,0.00030173,5]
[377409604,1754388640707,-500.0,0.00030173,5]
[377409605,1754388640717,-503.05874572,0.00030173,5]
[377409606,1754388640727,-500.0,0.00030173,2]
[377409607,1754388640736,-500.0,0.00030173,5]
[377409608,1754388640745,-500.0,0.00030173,5]
[377409609,1754388640754,-500.0,0.00030173,5]
[377409610,1754388640764,-500.0,0.00030173,5]
[377409611,1754388640773,-500.0,0.00030173,5]
[377409612,1754388640782,-500.0,0.00030173,5]
[377409613,1754388640792,-500.0,0.00030173,5]
[377409614,1754388640803,-500.0,0.00030173,5]
[377409615,1754388640813,-393.43809798,0.00030173,5]
[377409616,1754388640822,-160.0,0.00030274,2]
[377409617,1754388640832,-500.0,0.00030275,5]
[377409618,1754388640842,-500.0,0.00030275,5]
[377409619,1754388640851,-216.4206905,0.00030306,2]
[377409620,1754388640861,-231.72586818,0.00030307,2]
[377409621,1754388640871,-215.21874788,0.00030307,2]
[377409622,1754388640882,-160.0,0.00030307,2]
[377409623,1754388640891,-842.25606042,0.00030307,2]
[377409624,1754388640901,-160.0,0.00030312,2]
[377409625,1754388640910,-160.0,0.00030312,2]
[377409626,1754388640920,-160.0,0.00030312,2]
[377409627,1754388640929,-160.0,0.00030312,2]
[377409628,1754388640939,-160.0,0.00030312,2]
[377409629,1754388640948,-500.0,0.00030521,5]
[377409630,1754388640958,-420.0,0.00030576,2]
[377409631,1754388640967,-1680.0,0.00030669,2]
[377409632,1754388640977,-565.95,0.0003068,30]
[377409633,1754388640987,-983.0,0.00030697,2]
[377409634,1754388640996,-503.39022341,0.00030721,5]
[377409635,1754388641006,-1000.0,0.00030721,5]
[377409636,1754388641015,-653.0185066,0.00030721,5]
[377409637,1754388641024,-1000.0,0.00030721,5]
[377409638,1754388641034,-1000.0,0.00030721,5]
[377409639,1754388641043,-500.0,0.00030721,5]
[377409640,1754388641052,-1000.0,0.00030721,5]
[377409641,1754388641062,-1000.0,0.00030721,2]
[377409642,1754388641071,-500.0,0.00030721,5]
[377409643,1754388641080,-505.79870927,0.00030721,5]
[377409644,1754388641090,-500.0,0.00030721,5]
[377409645,1754388641099,-500.0,0.00030721,5]
[377409646,1754388641108,-500.0,0.00030721,5]
[377409647,1754388641118,-1000.0,0.00030721,5]
[377409648,1754388641128,-1000.0,0.00030721,5]
[377409649,1754388641137,-260.0,0.00030822,2]
[377409651,1754388641147,-1000.0,0.00030823,5]
[377409653,1754388641156,-200.0,0.00031249,15]
[377409655,1754388641165,-200.0,0.00031249,15]
[377409657,1754388641175,-200.0,0.00031249,15]
[377409659,1754388641184,-1500.0,0.00031268,5]
[377409661,1754388641194,-505.17341474,0.00031268,5]
[377409663,1754388641203,-1000.0,0.00031268,5]
[377409665,1754388641213,-638.96123894,0.00031268,2]
[377409667,1754388641222,-500.0,0.00031268,5]
[377409669,1754388641232,-500.0,0.00031268,5]
[377409671,1754388641241,-360.0,0.0003137,2]
[377409673,1754388641251,-1500.0,0.00031371,5]
[377409675,1754388641260,-642.73159445,0.00031374,2]
[377409677,1754388641270,-258.0,0.00031425,15]
[377409679,1754388641279,-2968.46386026,0.0003187,2]
[377409681,1754388641289,-460.0,0.00031918,2]
[377409683,1754388641298,-1504.993645,0.00031963,120]
[377409685,1754388641307,-258.0,0.00032204,15]
[377409687,1754388641316,-2654.56050727,0.00032209,2]
[377409689,1754388641326,-560.0,0.00032466,2]
[377409691,1754388641335,-642.73159445,0.00032621,2]
[377409693,1754388641345,-11010.03067504,0.0003265,2]
[377409695,1754388641354,-5000.0,0.00032768,4]
[377409697,1754388641366,-500.74949541,0.00032873,5]
[377409699,1754388641376,-500.47511383,0.00032873,5]
[377409701,1754388641385,-500.0,0.00032873,5]
[377409703,1754388641395,-500.0,0.00032873,5]
[377409705,1754388641404,-500.0,0.00032873,2]
[377409707,1754388641413,-150.0,0.00032873,5]
[377409709,1754388641423,-500.0,0.00032873,5]
[377409711,1754388641432,-500.0,0.00032873,5]
[377409713,1754388641441,-500.0,0.00032873,5]
[377409714,1754388641450,-500.0,0.00032873,5]
[377409716,1754388641459,-500.0,0.00032873,5]
[377409718,1754388641469,-500.59559057,0.00032873,5]
[377409720,1754388641478,-500.0,0.00032873,5]
[377409722,1754388641487,-500.0,0.00032876,120]
[377409724,1754388641496,-4116.78,0.00032876,120]
[377409726,1754388641506,-5309.12101454,0.0003289,2]
[377409728,1754388641515,-1613.66,0.000329,7]
[377409730,1754388641524,-521.89,0.000329,7]
[377409732,1754388641534,-53789.89,0.000329,14]
[377409734,1754388641543,-6260.22081905,0.000329,14]
[377409738,1754388641568,-1152.35,0.000329,14]
[377409740,1754388641579,-27845.08918095,0.000329,14]
[377409742,1754388641588,-151.0,0.000329,14]
[377409744,1754388641598,-151.0,0.000329,14]
[377409746,1754388641607,-151.0,0.000329,14]
[377409748,1754388641618,-154.75966,0.000329,14]
[377409750,1754388641627,-151.0,0.000329,14]
[377409752,1754388641637,-151.0,0.000329,14]
[377409754,1754388641646,-151.0,0.000329,14]
[377409756,1754388641656,-154.993033,0.000329,14]
[377409758,1754388641665,-175.050713,0.000329,14]
[377409760,1754388641674,-175.050713,0.000329,14]
[377409762,1754388641683,-151.0,0.000329,14]
[377409763,1754388641693,-151.0,0.000329,14]
[377409764,1754388641703,-151.0,0.000329,14]
[377409765,1754388641712,-151.0,0.000329,14]
[377409766,1754388641721,-151.0,0.000329,14]
[377409768,1754388641731,-1446.759516,0.000329,14]
[377409769,1754388641740,-260.141943,0.000329,14]
[377409770,1754388641749,-151.0,0.000329,14]
[377409771,1754388641758,-1446.759516,0.000329,14]
[377409772,1754388641768,-260.141943,0.000329,14]
[377409773,1754388641777,-152.081913,0.000329,14]
[377409774,1754388641787,-153.824787,0.000329,14]
[377409775,1754388641797,-151.0,0.000329,14]
[377409776,1754388641809,-807.268608,0.000329,14]
[377409777,1754388641819,-807.268608,0.000329,14]
[377409778,1754388641828,-151.0,0.000329,14]
[377409779,1754388641842,-151.0,0.000329,14]
[377409780,1754388641851,-151.0,0.000329,14]
[377409781,1754388641862,-151.0,0.000329,14]
[377409782,1754388641871,-4000.0,0.0003295,4]
[377409783,1754388641882,-258.0,0.00032984,15]
[377409784,1754388641892,-587.0,0.00033011,2]
[377409785,1754388641902,-660.0,0.00033014,2]
[377409786,1754388641911,-226.38227363,0.00033037,2]
[377409787,1754388641922,-986.0,0.00033109,3]
[377409788,1754388641933,-977.44065387,0.00033421,2]
[377409789,1754388641945,-22.55934613,0.00033421,2]
[377409790,1754388641954,-250.0,0.00033421,5]
[377409791,1754388641964,-368.44922971,0.00033421,5]
[377409792,1754388641980,-1028.36,0.0003034,3]
[377409793,1754388641991,-71.74763453,0.00033421,5]
[377409794,1754388642003,-471.54538709,0.00033421,5]
[377409795,1754388642015,-88.25774867,0.00033421,5]
[377409796,1754388642026,-511.81390721,0.00033421,5]
[377409797,1754388642039,-488.18609279,0.00033421,5]
[377409798,1754388642050,-1000.0,0.00033421,5]
[377409799,1754388642060,-1036.50230585,0.00033421,5]
[377409800,1754388642072,-1000.0,0.00033421,5]
[377409801,1754388642081,-508.02329547,0.00033562,2]
[377409802,1754388642091,-153.0,0.00033571,30]
[377409803,1754388642101,-511.15119798,0.00033587,120]
[377409804,1754388642110,-200.0,0.000336,120]
[377409805,1754388642120,-213.22464,0.000336,120]
[377409806,1754388642129,-200.0,0.000336,120]
[377409807,1754388642140,-145.3964095,0.00033688,2]
[377409808,1754388642152,-2509.16409777,0.00033688,2]
[377409809,1754388642162,-312.16666667,0.00033698,120]
[377409810,1754388642172,-527.3554621,0.00033698,120]
[377409811,1754388642182,-4116.78,0.00033698,120]
[377409812,1754388642191,-163.90172544,0.00033753,2]
[377409813,1754388642201,-258.0,0.00033763,15]
[377409814,1754388642210,-642.73159445,0.00033868,2]
[377409815,1754388642219,-1000.0,0.00033968,2]
[377409816,1754388642229,-350.0,0.00033968,5]
[377409817,1754388642238,-1502.57111107,0.00033968,5]
[377409818,1754388642248,-1500.0,0.00033968,5]
[377409819,1754388642258,-506.27713734,0.00033968,5]
[377409820,1754388642268,-1500.0,0.00033968,5]
[377409821,1754388642277,-502.4193091,0.00033968,5]
[377409822,1754388642286,-151.0,0.00033973,14]
[377409823,1754388642296,-237.160063,0.00033973,14]
[377409824,1754388642306,-151.0,0.00033973,14]
[377409825,1754388642315,-800.0,0.00033991,2]
[377409826,1754388642325,-500.0,0.00034,120]
[377409827,1754388642334,-476.33928564,0.00034009,2]
[377409828,1754388642346,-323.66071436,0.00034009,2]
[377409829,1754388642356,-800.0,0.00034081,2]
[377409830,1754388642368,-800.0,0.00034104,2]
[377409831,1754388642377,-800.0,0.00034179,2]
[377409832,1754388642386,-200.0,0.00034239,15]
[377409833,1754388642396,-200.0,0.00034239,15]
[377409834,1754388642405,-200.0,0.00034239,15]
[377409835,1754388642415,-240.0,0.00034239,15]
[377409836,1754388642424,-500.0,0.00034246,120]
[377409837,1754388642434,-161.091702,0.00034247,2]
[377409838,1754388642443,-450.73104502,0.00034516,5]
[377409839,1754388642452,-500.0,0.00034516,5]
[377409840,1754388642461,-2055.58315392,0.00034516,5]
[377409841,1754388642470,-161.307577,0.0003452,14]
[377409842,1754388642479,-320.989395,0.0003452,14]
[377409843,1754388642489,-161.307577,0.0003452,14]
[377409844,1754388642498,-4116.78,0.0003452,120]
[377409845,1754388642508,-258.0,0.00034543,15]
[377409846,1754388642517,-151.0,0.000347,13]
[377409847,1754388642527,-233.41,0.00034738,2]
[377409848,1754388642536,-151.0,0.00034747,2]
[377409849,1754388642547,-151.0,0.00034747,2]
[377409850,1754388642564,-151.0,0.00034747,2]
[377409851,1754388642587,-151.0,0.00034747,2]
[377409852,1754388642597,-151.0,0.00034747,2]
[377409853,1754388642606,-151.0,0.00034747,2]
[377409854,1754388642617,-151.0,0.00034747,2]
[377409855,1754388642626,-151.0,0.00034747,2]
[377409856,1754388642635,-151.0,0.00034747,2]
[377409857,1754388642644,-151.0,0.00034747,2]
[377409858,1754388642654,-151.0,0.00034747,2]
[377409859,1754388642664,-151.0,0.00034747,2]
[377409860,1754388642674,-151.0,0.00034747,2]
[377409861,1754388642683,-151.0,0.00034747,2]
[377409862,1754388642693,-151.0,0.00034747,2]
[377409863,1754388642703,-151.0,0.00034747,2]
[377409864,1754388642712,-151.0,0.00034747,2]
[377409865,1754388642723,-151.0,0.00034747,2]
[377409866,1754388642733,-151.0,0.00034747,2]
[377409867,1754388642743,-151.0,0.00034747,2]
[377409868,1754388642752,-151.0,0.00034747,2]
[377409869,1754388642761,-151.0,0.00034747,2]
[377409870,1754388642770,-151.0,0.00034747,2]
[377409871,1754388642780,-151.0,0.00034747,2]
[377409872,1754388642790,-151.0,0.00034747,2]
[377409873,1754388642800,-151.0,0.00034747,2]
[377409874,1754388642813,-151.0,0.00034747,2]
[377409875,1754388642822,-151.0,0.00034747,2]
[377409876,1754388642831,-195.13104972,0.00034747,2]
[377409877,1754388642840,-430.7234783,0.00034905,30]
[377409878,1754388642850,-430.7234783,0.00034905,30]
[377409879,1754388642860,-430.7234783,0.00034905,30]
[377409880,1754388642869,-430.7234783,0.00034905,30]
[377409881,1754388642879,-430.7234783,0.00034905,30]
[377409882,1754388642890,-150.0,0.00034973,3]
[377409883,1754388642899,-151.0,0.00034987,14]
[377409885,1754388642909,-151.0,0.00034987,14]
[377409886,1754388642919,-154.424643,0.00034996,14]
[377409887,1754388642929,-151.0,0.00034996,14]
[377409888,1754388642938,-151.0,0.00034996,14]
[377409889,1754388642947,-151.0,0.00034996,14]
[377409890,1754388642956,-151.0,0.00034996,14]
[377409891,1754388642966,-151.0,0.00034996,14]
[377409892,1754388642975,-171.489852,0.00034996,14]
[377409893,1754388642986,-151.0,0.00034996,14]
[377409894,1754388642995,-151.0,0.00034996,14]
[377409895,1754388643005,-260.141943,0.00034996,14]
[377409896,1754388643014,-260.141943,0.00034996,14]
[377409901,1754388643123,-151.0,0.00034996,14]
[377409902,1754388643133,-260.141943,0.00034996,14]
[377409903,1754388643143,-260.141943,0.00034996,14]
[377409904,1754388643153,-151.0,0.00034996,14]
[377409905,1754388643163,-151.0,0.00034996,14]
[377409906,1754388643172,-151.0,0.00034996,14]
[377409907,1754388643182,-151.0,0.00034996,14]
[377409908,1754388643191,-151.0,0.00034996,14]
[377409909,1754388643201,-151.0,0.00034996,14]
[377409910,1754388643210,-151.0,0.00034996,14]
[377409911,1754388643219,-151.0,0.00034996,14]
[377409913,1754388643228,-151.0,0.00034996,3]
[377409914,1754388643237,-151.0,0.00034996,3]
[377409916,1754388643246,-151.0,0.00034996,3]
[377409917,1754388643256,-500.0,0.00034996,3]
[377409918,1754388643265,-300.0,0.00034996,3]
[377409919,1754388643275,-151.0,0.00034996,3]
[377409920,1754388643284,-500.0,0.00034996,3]
[377409921,1754388643294,-300.0,0.00034996,3]
[377409922,1754388643303,-151.0,0.00034996,3]
[377409923,1754388643312,-500.0,0.00034996,3]
[377409924,1754388643322,-300.0,0.00034996,3]
[377409925,1754388643332,-151.0,0.00034996,3]
[377409926,1754388643341,-500.0,0.00034996,3]
[377409927,1754388643350,-300.0,0.00034996,3]
[377409928,1754388643360,-300.0,0.00034996,3]
[377409929,1754388643371,-151.0,0.00034996,3]
[377409930,1754388643381,-500.0,0.00034996,3]
[377409931,1754388643390,-300.0,0.00034996,3]
[377409932,1754388643400,-219.28609985,0.00034996,3]
[377409933,1754388643409,-151.0,0.00034996,3]
[377409934,1754388643419,-151.0,0.00034996,3]
[377409936,1754388643430,-500.0,0.00034996,3]
[377409937,1754388643439,-300.0,0.00034996,3]
[377409938,1754388643449,-151.0,0.00034996,3]
[377409939,1754388643458,-151.0,0.00034996,3]
[377409940,1754388643468,-300.0,0.00034996,3]
[377409941,1754388643478,-151.0,0.00034996,14]
[377409942,1754388643487,-151.0,0.00034996,3]
[377409943,1754388643497,-151.0,0.00034996,3]
[377409945,1754388643506,-500.0,0.00034996,3]
[377409946,1754388643515,-2183.31810187,0.00034996,3]
[377409947,1754388643525,-300.0,0.00034996,3]
[377409949,1754388643534,-500.0,0.00034996,3]
[377409951,1754388643544,-2264.10087164,0.00034996,3]
[377409953,1754388643553,-175.08619238,0.00034996,3]
[377409955,1754388643563,-151.0,0.00034996,3]
[377409957,1754388643574,-151.0,0.00034996,14]
[377409959,1754388643583,-500.0,0.00034996,3]
[377409961,1754388643594,-151.0,0.00034996,3]